Workbook

Sheet Литье Золота
A1: Угар | B1: 0.035 | D1: Литье Инвори | E1: -2150
A2: Угар | B2: 0.02 | D2: Литье Адрия | E2: -2500
A3: Угар | B3: 0.1
L5: Всего грамм | M5: Всего Рубли
L6: =SUBTOTAL(9,L11:L99997) -> 138.52 | M6: =SUBTOTAL(9,M11:M99997) -> -77405.65 | AC6: =SUBTOTAL(9,AC11:AC99997) -> 3.63 | AD6: =SUBTOTAL(9,AD11:AD99997) -> 0 | AE6: =SUBTOTAL(9,AE11:AE99997) -> 269.36
AC9: Вес | AD9: Вес | AE9: в 585
A10: Наиминование | B10: Дата | C10: Приход Рубли | D10: Приход Металл Вес | E10: Проба Лома | F10: Пересчет в 585 | G10: Вес Литья | H10: Проба Литья | I10: Угар 3,5% | J10: Цена за 1г Литья | K10: За Литье | L10: Остатки металла в 585 пробе | M10: Всего Рубли | N10: Продажа металл Цена | O10: Покупка металл Цена | P10: Количество Восковки | Q10: Цена Восковки | R10: Срочное литье Цена | S10: Монтировка | T10: Рост | U10: 3D | V10: Резина | W10: Родий | X10: Прочие расход | Y10: Количество Елок | Z10: Доставка | AA10: Телефон | AB10: Адрес | AC10: Проданный металл | AD10: Купленный металл | AE10: Всего отлито
A11: Алан | B11: 2018-02-20T18:30:51 | C11: -1723 | D11: -29.71 | E11: 585 | F11: =ROUND(D11*E11/585,2) -> -29.71 | I11: =IF(COUNTIF(A11,"*монтировка*"),$B$3*G11+G11,IF(A11="Бисмарк",G11*$B$2+G11,$B$1*G11+G11)) -> 0 | K11: =ROUND(G11*J11,2) -> 0 | L11: =ROUND(F11-I11*H11/585,2) -> -29.71 | M11: =ROUND(C11-(K11-(IF(N11>0,IF(D11>0,-L11*N11,L11*N11))+-(P11*Q11)+-R11+-S11+-T11+-U11+-V11+-W11+IF(A11="Адрия",Y11*$E$2)+IF(A11="Инвори",Y11*$E$1))+Z11),2) -> -1723 | AC11: =ROUND(IF(N11>0,IF(D11>0,L11,-L11),0),2) -> 0 | AD11: =ROUND(IF(O11>0,D11*E11/585,0),2) -> 0 | AE11: =ROUND(G11*H11/585,2) -> 0
A12: Бойко Станислав | B12: 2018-02-20T19:03:48 | C12: -574 | D12: -9.9 | E12: 585 | F12: -9.9 | I12: 0 | K12: 0 | L12: -9.9 | M12: -574 | AC12: 0 | AD12: 0 | AE12: 0
A13: Копцев Владимир | B13: 2018-02-20T19:03:59 | C13: -413 | D13: -0.47 | E13: 585 | F13: =ROUND(D13*E13/585,2) -> -0.47 | I13: 0 | K13: =ROUND(G13*J13,2) -> 0 | L13: =ROUND(F13-I13*H13/585,2) -> -0.47 | M13: -413 | AC13: =ROUND(IF(N13>0,IF(D13>0,L13,-L13),0),2) -> 0 | AD13: =ROUND(IF(O13>0,D13*E13/585,0),2) -> 0 | AE13: =ROUND(G13*H13/585,2) -> 0
A14: Гусев Роман | B14: 2018-02-20T19:04:06 | D14: -5.18 | E14: 585 | F14: -5.18 | I14: 0 | K14: 0 | L14: -5.18 | M14: 0 | AC14: 0 | AD14: 0 | AE14: 0
A15: Карен | B15: 2018-02-20T18:30:57 | C15: -812 | D15: -7.84 | E15: 585 | F15: -7.84 | I15: 0 | K15: 0 | L15: -7.84 | M15: -812 | AC15: 0 | AD15: 0 | AE15: 0
A16: Курчаров Алексей | B16: 2018-02-20T19:04:24 | C16: -1365 | F16: 0 | I16: 0 | K16: 0 | L16: 0 | M16: -1365 | AC16: 0 | AD16: 0 | AE16: 0
A17: Роберт | B17: 2018-02-20T18:31:01 | F17: 0 | I17: 0 | K17: 0 | L17: 0 | M17: -3300 | T17: 3300 | AC17: 0 | AD17: 0 | AE17: 0
A18: Крамарь Максим | B18: 2018-02-20T19:04:33 | C18: -1321 | D18: 97.16 | E18: 585 | F18: 97.16 | I18: 0 | K18: 0 | L18: 97.16 | M18: -1321 | AC18: 0 | AD18: 0 | AE18: 0
A19: Ярмишко Светлана | B19: 2018-02-20T19:04:45 | C19: -1854 | F19: 0 | I19: 0 | K19: 0 | L19: 0 | M19: -1854 | AC19: 0 | AD19: 0 | AE19: 0
A20: Крамарь Максим | B20: 2018-02-20T18:31:02 | D20: 1.44 | E20: 585 | F20: 1.44 | I20: 0 | K20: 0 | L20: 1.44 | M20: 0 | AC20: 0 | AD20: 0 | AE20: 0
A21: Крамарь Максим | B21: 2018-02-20T18:31:03 | C21: 1441 | F21: 0 | I21: 0 | K21: 0 | L21: 0 | M21: 1441 | AC21: 0 | AD21: 0 | AE21: 0
A22: Бисмарк | B22: 2018-02-20T18:34:49 | C22: -16783 | D22: 44.62 | E22: 585 | F22: 44.62 | I22: 0 | K22: 0 | L22: 44.62 | M22: -18183 | V22: 1400 | AC22: 0 | AD22: 0 | AE22: 0
A23: Айк | B23: 2018-02-20T18:46:11 | C23: -3728 | D23: -16.84 | E23: 585 | F23: =ROUND(D23*E23/585,2) -> -16.84 | I23: 0 | K23: =ROUND(G23*J23,2) -> 0 | L23: =ROUND(F23-I23*H23/585,2) -> -16.84 | M23: -3728 | AC23: =ROUND(IF(N23>0,IF(D23>0,L23,-L23),0),2) -> 0 | AD23: =ROUND(IF(O23>0,D23*E23/585,0),2) -> 0 | AE23: =ROUND(G23*H23/585,2) -> 0
A24: Алан | B24: 2018-02-20T18:49:58 | C24: -927 | D24: -20.51 | E24: 585 | F24: -20.51 | I24: 0 | K24: 0 | L24: -20.51 | M24: -927 | AC24: 0 | AD24: 0 | AE24: 0
A25: Боженов Андрей | B25: 2018-02-20T19:05:18 | D25: 36.79 | E25: 585 | F25: 36.79 | I25: 0 | K25: 0 | L25: 36.79 | M25: 0 | AC25: 0 | AD25: 0 | AE25: 0
A26: Чеботарь Вадим | B26: 2018-02-20T19:05:28 | D26: -12.62 | E26: 585 | F26: -12.62 | I26: 0 | K26: 0 | L26: -12.62 | M26: 0 | AC26: 0 | AD26: 0 | AE26: 0
A27: Вашерон | B27: 2018-02-20T18:53:56 | C27: -1686 | F27: 0 | I27: 0 | K27: 0 | L27: 0 | M27: -1686 | AC27: 0 | AD27: 0 | AE27: 0
A28: Вячеслав Кузьминки | B28: 2018-02-20T18:54:43 | C28: -5813 | D28: -5.38 | E28: 585 | F28: -5.38 | I28: 0 | K28: 0 | L28: -5.38 | M28: -5813 | AC28: 0 | AD28: 0 | AE28: 0
A29: Туманян Виктор | B29: 2018-02-20T19:05:42 | C29: -455 | D29: 13.26 | E29: 585 | F29: 13.26 | I29: 0 | K29: 0 | L29: 13.26 | M29: -455 | AC29: 0 | AD29: 0 | AE29: 0
A30: Вовчик | B30: 2018-02-20T18:56:39 | C30: -796 | D30: 4.22 | E30: 585 | F30: 4.22 | I30: 0 | K30: 0 | L30: 4.22 | M30: -796 | AC30: 0 | AD30: 0 | AE30: 0
A31: Амиян Володя | B31: 2018-02-20T19:05:52 | D31: -9.34 | E31: 585 | F31: -9.34 | I31: 0 | K31: 0 | L31: -9.34 | M31: 0 | AC31: 0 | AD31: 0 | AE31: 0
A32: Даша | B32: 2018-02-20T18:58:15 | D32: 45 | E32: 585 | F32: 45 | I32: 0 | K32: 0 | L32: 45 | M32: 0 | AC32: 0 | AD32: 0 | AE32: 0
A33: Долгих Дмитрий | B33: 2018-02-20T19:06:02 | D33: 7.29 | E33: 585 | F33: 7.29 | I33: 0 | K33: 0 | L33: 7.29 | M33: -800 | V33: 800 | AC33: 0 | AD33: 0 | AE33: 0
A34: Заур | B34: 2018-02-20T18:59:58 | D34: -2.39 | E34: 585 | F34: -2.39 | I34: 0 | K34: 0 | L34: -2.39 | M34: 0 | AC34: 0 | AD34: 0 | AE34: 0
A35: Левинтас Игорь | B35: 2018-02-20T19:06:11 | C35: -8041 | D35: 78.78 | E35: 585 | F35: 78.78 | I35: 0 | K35: 0 | L35: 78.78 | M35: -8041 | AC35: 0 | AD35: 0 | AE35: 0
A36: Михалев Дмитрий | B36: 2018-02-20T19:06:23 | C36: -3483 | F36: 0 | I36: 0 | K36: 0 | L36: 0 | M36: -3483 | AC36: 0 | AD36: 0 | AE36: 0
A37: Миша Вовчик | B37: 2018-02-20T19:07:05 | C37: -577 | D37: -1.61 | E37: 585 | F37: -1.61 | I37: 0 | K37: 0 | L37: -1.61 | M37: -577 | AC37: 0 | AD37: 0 | AE37: 0
A38: Евтушенко Рома | B38: 2018-02-20T19:08:52 | C38: -6741 | D38: -32.17 | E38: 585 | F38: -32.17 | I38: 0 | K38: 0 | L38: -32.17 | M38: -6741 | AC38: 0 | AD38: 0 | AE38: 0
A39: Семенов Рома | B39: 2018-02-20T19:10:34 | D39: 39.02 | E39: 585 | F39: 39.02 | I39: 0 | K39: 0 | L39: 39.02 | M39: 0 | AC39: 0 | AD39: 0 | AE39: 0
A40: Саша Яшма | B40: 2018-02-20T19:11:07 | C40: -7872 | D40: -17.49 | E40: 585 | F40: -17.49 | I40: 0 | K40: 0 | L40: -17.49 | M40: -7872 | AC40: 0 | AD40: 0 | AE40: 0
A41: Тимур | B41: 2018-02-20T19:12:36 | D41: 4.78 | E41: 585 | F41: 4.78 | I41: 0 | K41: 0 | L41: 4.78 | M41: 0 | AC41: 0 | AD41: 0 | AE41: 0
A42: карен | B42: 2018-02-20T19:26:18 | C42: 1000 | D42: 7.62 | E42: 585 | F42: =ROUND(D42*E42/585,2) -> 7.62 | G42: 5.73 | H42: 750 | I42: 5.93055 | J42: 65 | K42: =ROUND(G42*J42,2) -> 372.45 | L42: =ROUND(F42-I42*H42/585,2) -> 0.02 | M42: 627.55 | AC42: =ROUND(IF(N42>0,IF(D42>0,L42,-L42),0),2) -> 0 | AD42: =ROUND(IF(O42>0,D42*E42/585,0),2) -> 0 | AE42: =ROUND(G42*H42/585,2) -> 7.35
A43: Бисмарк | B43: 2018-02-20T19:27:03 | D43: 14.54 | E43: 585 | F43: 14.54 | G43: 6.34 | H43: 585 | I43: =IF(COUNTIF(A43,"*монтировка*"),$B$3*G43+G43,IF(A43="Бисмарк",G43*$B$2+G43,$B$1*G43+G43)) -> 6.4668 | J43: 60 | K43: 380.4 | L43: 8.07 | M43: =ROUND(C43-(K43-(IF(N43>0,IF(D43>0,-L43*N43,L43*N43))+-(P43*Q43)+-R43+-S43+-T43+-U43+-V43+-W43+IF(A43="Адрия",Y43*$E$2)+IF(A43="Инвори",Y43*$E$1))+Z43),2) -> -380.4 | AC43: 0 | AD43: 0 | AE43: 6.34
A44: Ярмишко Светлана | B44: 2018-02-20T19:28:07 | F44: 0 | G44: 38.13 | H44: 750 | I44: 39.46455 | J44: 60 | K44: 2287.8 | L44: -50.6 | M44: -2287.8 | AC44: 0 | AD44: 0 | AE44: 48.88
A45: Ярмишко Светлана | B45: 2018-02-20T19:28:39 | F45: 0 | G45: 17.28 | H45: 585 | I45: 17.8848 | J45: 60 | K45: 1036.8 | L45: -17.88 | M45: -1036.8 | AC45: 0 | AD45: 0 | AE45: 17.28
A46: Лучникова Ольга | B46: 2018-02-20T19:29:08 | F46: 0 | G46: 4.51 | H46: 750 | I46: 4.66785 | J46: 60 | K46: 270.6 | L46: -5.98 | M46: -270.6 | AC46: 0 | AD46: 0 | AE46: 5.78
A47: Иван Вежливый | B47: 2018-02-20T19:30:08 | F47: 0 | G47: 2.73 | H47: 750 | I47: 2.82555 | K47: 0 | L47: -3.62 | M47: 0 | AC47: 0 | AD47: 0 | AE47: 3.5
A48: Иван Вежливый | B48: 2018-02-20T19:30:34 | C48: 5386.92 | D48: 2.83 | E48: 750 | F48: 3.63 | I48: 0 | K48: 0 | L48: 3.63 | M48: 0 | N48: 1484 | AC48: 3.63 | AD48: 0 | AE48: 0
A49: Бисмарк | B49: 2018-02-20T19:33:29 | D49: 3.1 | E49: 750 | F49: 3.97 | I49: 0 | K49: 0 | L49: 3.97 | M49: 0 | AC49: 0 | AD49: 0 | AE49: 0
A50: Крамарь Максим | B50: 2018-02-20T19:33:59 | D50: 3.91 | E50: 585 | F50: 3.91 | I50: 0 | K50: 0 | L50: 3.91 | M50: 0 | AC50: 0 | AD50: 0 | AE50: 0
A51: Даша | B51: 2018-02-20T21:28:27 | C51: 2980 | F51: =ROUND(D51*E51/585,2) -> 0 | G51: 49.67 | H51: 585 | I51: 51.40845 | J51: 60 | K51: =ROUND(G51*J51,2) -> 2980.2 | L51: =ROUND(F51-I51*H51/585,2) -> -51.41 | M51: -0.2 | AC51: =ROUND(IF(N51>0,IF(D51>0,L51,-L51),0),2) -> 0 | AD51: =ROUND(IF(O51>0,D51*E51/585,0),2) -> 0 | AE51: =ROUND(G51*H51/585,2) -> 49.67
A52: Крамарь Максим | B52: 2018-02-20T21:49:12 | D52: 13.63 | E52: 585 | F52: 13.63 | I52: 0 | K52: 0 | L52: 13.63 | M52: 0 | AC52: 0 | AD52: 0 | AE52: 0
A53: Крамарь Максим | B53: 2018-02-20T21:49:40 | D53: -10 | E53: 999 | F53: -17.08 | I53: 0 | K53: 0 | L53: -17.08 | M53: 0 | AC53: 0 | AD53: 0 | AE53: 0
A54: дхарма | B54: 2018-02-21T10:36:18 | F54: 0 | G54: 21.42 | H54: 750 | I54: 22.1697 | J54: 60 | K54: 1285.2 | L54: -28.42 | M54: -1285.2 | AC54: 0 | AD54: 0 | AE54: 27.46
A55: Михалев Дмитрий | B55: 2018-02-21T11:32:21 | F55: 0 | G55: 1.14 | H55: 585 | I55: 1.1799 | J55: 65 | K55: 74.1 | L55: -1.18 | M55: -74.1 | AC55: 0 | AD55: 0 | AE55: 1.14
A56: Левинтас Игорь | B56: 2018-02-21T12:11:44 | F56: 0 | G56: 43.49 | H56: 585 | I56: 45.01215 | J56: 65 | K56: 2826.85 | L56: -45.01 | M56: -2826.85 | AC56: 0 | AD56: 0 | AE56: 43.49
A57: Азат | B57: 2018-02-21T13:35:21 | C57: 476 | D57: 7.59 | E57: 585 | F57: =ROUND(D57*E57/585,2) -> 7.59 | G57: 7.33 | H57: 585 | I57: 7.58655 | J57: 65 | K57: =ROUND(G57*J57,2) -> 476.45 | L57: =ROUND(F57-I57*H57/585,2) -> 0 | M57: -0.45 | AC57: =ROUND(IF(N57>0,IF(D57>0,L57,-L57),0),2) -> 0 | AD57: =ROUND(IF(O57>0,D57*E57/585,0),2) -> 0 | AE57: =ROUND(G57*H57/585,2) -> 7.33
A58: Крамарь Максим | B58: 2018-02-21T13:37:23 | D58: 15.75 | E58: 375 | F58: 10.1 | I58: 0 | K58: 0 | L58: 10.1 | M58: 0 | AC58: 0 | AD58: 0 | AE58: 0
A59: Крамарь Максим | B59: 2018-02-21T13:38:05 | D59: 8.66 | E59: 585 | F59: 8.66 | I59: 0 | K59: 0 | L59: 8.66 | M59: 0 | AC59: 0 | AD59: 0 | AE59: 0
A60: Крамарь Максим | B60: 2018-02-21T13:38:09 | D60: 21.88 | E60: 999 | F60: 37.36 | I60: 0 | K60: 0 | L60: 37.36 | M60: 0 | AC60: 0 | AD60: 0 | AE60: 0
A61: дхарма | B61: 2018-02-21T13:54:56 | C61: -7970 | D61: -15.24 | E61: 585 | F61: -15.24 | I61: 0 | K61: 0 | L61: -15.24 | M61: -7970 | AC61: 0 | AD61: 0 | AE61: 0
A62: илья | B62: 2018-02-21T13:56:31 | D62: 3.03 | E62: 585 | F62: 3.03 | I62: 0 | K62: 0 | L62: 3.03 | M62: 0 | AC62: 0 | AD62: 0 | AE62: 0
A63: артем | B63: 2018-02-21T13:56:57 | D63: -16.8 | E63: 585 | F63: -16.8 | I63: 0 | K63: 0 | L63: -16.8 | M63: 0 | AC63: 0 | AD63: 0 | AE63: 0
A64: Ярмишко Светлана | B64: 2018-02-21T14:46:44 | F64: =ROUND(D64*E64/585,2) -> 0 | G64: 8.09 | H64: 585 | I64: 8.37315 | J64: 60 | K64: =ROUND(G64*J64,2) -> 485.4 | L64: =ROUND(F64-I64*H64/585,2) -> -8.37 | M64: -485.4 | AC64: =ROUND(IF(N64>0,IF(D64>0,L64,-L64),0),2) -> 0 | AD64: =ROUND(IF(O64>0,D64*E64/585,0),2) -> 0 | AE64: =ROUND(G64*H64/585,2) -> 8.09
A65: Ярмишко Светлана | B65: 2018-02-21T14:47:17 | F65: 0 | G65: 6.19 | H65: 750 | I65: 6.40665 | J65: 60 | K65: 371.4 | L65: -8.21 | M65: -371.4 | AC65: 0 | AD65: 0 | AE65: 7.94
A66: Вячеслав Кузьминки | B66: 2018-02-21T16:19:45 | F66: 0 | I66: 0 | K66: 0 | L66: 0 | M66: -1600 | T66: 1600 | AC66: 0 | AD66: 0 | AE66: 0
A67: Бисмарк | B67: 2018-02-21T16:35:56 | F67: 0 | G67: 18.15 | H67: 585 | I67: 18.513 | J67: 60 | K67: 1089 | L67: -18.51 | M67: -1089 | AC67: 0 | AD67: 0 | AE67: 18.15
A68: Алан | B68: 2018-02-22T10:57:33 | F68: 0 | G68: 2.5 | H68: 750 | I68: 2.5875 | J68: 60 | K68: 150 | L68: -3.32 | M68: -1150 | R68: 1000 | AC68: 0 | AD68: 0 | AE68: 3.21
A69: Даша | B69: 2018-02-22T10:59:19 | D69: 38.29 | E69: 585 | F69: 38.29 | I69: 0 | K69: 0 | L69: 38.29 | M69: 0 | AC69: 0 | AD69: 0 | AE69: 0
A70: Крамарь Максим | B70: 2018-02-22T11:01:38 | D70: 7.67 | E70: 956 | F70: 12.53 | I70: 0 | K70: 0 | L70: 12.53 | M70: 0 | AC70: 0 | AD70: 0 | AE70: 0
A71: Крамарь Максим | B71: 2018-02-22T11:02:05 | D71: 3.82 | E71: 750 | F71: 4.9 | I71: 0 | K71: 0 | L71: 4.9 | M71: 0 | AC71: 0 | AD71: 0 | AE71: 0
A72: Крамарь Максим | B72: 2018-02-22T11:02:29 | D72: 5.27 | E72: 585 | F72: 5.27 | I72: 0 | K72: 0 | L72: 5.27 | M72: 0 | AC72: 0 | AD72: 0 | AE72: 0
A73: зудина надежда | B73: 2018-02-22T11:03:22 | D73: 27.57 | E73: 750 | F73: 35.35 | I73: 0 | K73: 0 | L73: 35.35 | M73: 0 | AC73: 0 | AD73: 0 | AE73: 0
A74: зудина надежда | B74: 2018-02-22T11:03:50 | D74: 24.66 | E74: 585 | F74: 24.66 | I74: 0 | K74: 0 | L74: 24.66 | M74: 0 | AC74: 0 | AD74: 0 | AE74: 0
A75: Евтушенко Рома | B75: 2018-02-22T11:44:26 | C75: 6000 | D75: 10.28 | E75: 585 | F75: =ROUND(D75*E75/585,2) -> 10.28 | I75: =IF(COUNTIF(A75,"*монтировка*"),$B$3*G75+G75,IF(A75="Бисмарк",G75*$B$2+G75,$B$1*G75+G75)) -> 0 | K75: =ROUND(G75*J75,2) -> 0 | L75: =ROUND(F75-I75*H75/585,2) -> 10.28 | M75: =ROUND(C75-(K75-(IF(N75>0,IF(D75>0,-L75*N75,L75*N75))+-(P75*Q75)+-R75+-S75+-T75+-U75+-V75+-W75+IF(A75="Адрия",Y75*$E$2)+IF(A75="Инвори",Y75*$E$1))+Z75),2) -> 6000 | AC75: =ROUND(IF(N75>0,IF(D75>0,L75,-L75),0),2) -> 0 | AD75: =ROUND(IF(O75>0,D75*E75/585,0),2) -> 0 | AE75: =ROUND(G75*H75/585,2) -> 0
A76: Евтушенко Рома | B76: 2018-02-22T11:44:43 | D76: 20.71 | E76: 585 | F76: 20.71 | I76: 0 | K76: 0 | L76: 20.71 | M76: 0 | AC76: 0 | AD76: 0 | AE76: 0
A77: монтировка Крамарь | B77: 2018-02-22T12:23:57 | C77: 4000 | F77: 0 | I77: =IF(COUNTIF(A77,"*монтировка*"),$B$3*G77+G77,IF(A77="Бисмарк",G77*$B$2+G77,$B$1*G77+G77)) -> 0 | K77: 0 | L77: 0 | M77: 0 | S77: 4000 | AC77: 0 | AD77: 0 | AE77: 0
A78: монтировка Заур | B78: 2018-02-22T12:24:44 | C78: 3000 | F78: 0 | I78: =IF(COUNTIF(A78,"*монтировка*"),$B$3*G78+G78,IF(A78="Бисмарк",G78*$B$2+G78,$B$1*G78+G78)) -> 0 | K78: 0 | L78: 0 | M78: 0 | S78: 3000 | AC78: 0 | AD78: 0 | AE78: 0
A79: Монтировка Запонки | B79: 2018-02-22T12:25:11 | C79: 8818 | F79: 0 | G79: 13.75 | H79: 585 | I79: =IF(COUNTIF(A79,"*монтировка*"),$B$3*G79+G79,IF(A79="Бисмарк",G79*$B$2+G79,$B$1*G79+G79)) -> 15.125 | K79: 0 | L79: -15.13 | M79: 6318 | T79: 1500 | U79: 1000 | AC79: 0 | AD79: 0 | AE79: 13.75
A80: адрия | B80: 2018-02-22T12:34:08 | F80: 0 | I80: =IF(COUNTIF(A80,"*монтировка*"),$B$3*G80+G80,IF(A80="Бисмарк",G80*$B$2+G80,$B$1*G80+G80)) -> 0 | K80: 0 | L80: 0 | M80: 0 | AC80: 0 | AD80: 0 | AE80: 0
A81: Инвори | B81: 2018-02-22T12:37:03 | F81: 0 | I81: =IF(COUNTIF(A81,"*монтировка*"),$B$3*G81+G81,IF(A81="Бисмарк",G81*$B$2+G81,$B$1*G81+G81)) -> 0 | K81: 0 | L81: 0 | M81: -500 | Z81: 500 | AC81: 0 | AD81: 0 | AE81: 0

Sheet Литье Серебро
A1: Угар | B1: 0.035 | D1: Литье Инвори | E1: -2150
A2: Угар | B2: 0.02 | D2: Литье Адрия | E2: -2500
A3: Угар | B3: 0.1
L5: Всего грамм | M5: Всего Рубли
L6: =SUBTOTAL(9,L11:L99962) -> 836.23 | M6: =SUBTOTAL(9,M11:M99962) -> 0 | AC6: =SUBTOTAL(9,AC11:AC99962) -> 0 | AD6: =SUBTOTAL(9,AD11:AD99962) -> 0 | AE6: =SUBTOTAL(9,AE11:AE99962) -> 0
C9: Приход | D9: Приход | F9: Пересчет | I9: Вес | J9: за 1г Литья | L9: проба 925 | N9: Цена | O9: Цена | P9: Количество | Q9: Цена | R9: Цена | AC9: Вес | AD9: Вес | AE9: в 925
A10: Наиминование | B10: Дата | C10: Рубли | D10: Металл Вес | E10: Проба | F10: В 925 | G10: Вес Литья | H10: Проба2 | I10: Угар 3,5% | J10: Цена | K10: За Литье | L10: Остатки металла | M10: Всего Рубли | N10: Продажа металл | O10: Покупка металл | P10: Восковки | Q10: Восковки2 | R10: Срочное литье | S10: Монтировка | T10: Рост | U10: 3D | V10: Резина | W10: Родий | X10: Прочие расходы | Y10: Количество Елок | Z10: Доставка | AA10: Телефон | AB10: Адрес | AC10: Проданный металл | AD10: Купленный металл | AE10: Всего отлито
A11: Вячеслав Кузьминки | B11: 2018-02-21T14:03:26 | D11: -38.77 | E11: 925 | F11: =ROUND(D11*E11/925,2) -> -38.77 | I11: =ROUND(IF(A11="Бисмарк",G11*$B$2+G11,G11*$B$1+G11),2) -> 0 | K11: =ROUND(G11*J11,2) -> 0 | L11: =ROUND(F11-I11*H11/925,2) -> -38.77 | M11: =ROUND(C11-(K11-(IF(N11>0,IF(D11>0,-L11*N11,L11*N11))+-(P11*Q11)+-R11+-S11+-T11+-U11+-V11+-W11+IF(A11="Адрия",Y11*$E$2)+IF(A11="Инвори",Y11*$E$1))+Z11),2) -> 0 | AC11: =ROUND(IF(N11>0,IF(D11>0,L11,-L11),0),2) -> 0 | AD11: =ROUND(IF(O11>0,D11*E11/925,0),2) -> 0 | AE11: =ROUND(G11*H11/925,2) -> 0
A12: Боженов Андрей | B12: 2018-02-21T14:04:39 | D12: 774.29 | E12: 999 | F12: 836.23 | I12: 0 | K12: 0 | L12: 836.23 | M12: 0 | AC12: 0 | AD12: 0 | AE12: 0
A13: Евтушенко Роман | B13: 2018-02-21T14:06:25 | C13: -140 | D13: 1.47 | E13: 925 | F13: 1.47 | I13: 0 | K13: 0 | L13: 1.47 | M13: -140 | AC13: 0 | AD13: 0 | AE13: 0
A14: Алан | B14: 2018-02-21T14:07:16 | C14: -667 | D14: 170.73 | E14: 925 | F14: 170.73 | I14: 0 | K14: 0 | L14: 170.73 | M14: -667 | AC14: 0 | AD14: 0 | AE14: 0
A15: Крамарь Максим | B15: 2018-02-21T14:09:13 | D15: 300 | E15: 999 | F15: 324 | I15: 0 | K15: 0 | L15: 324 | M15: 0 | AC15: 0 | AD15: 0 | AE15: 0
A16: Артефакториум | B16: 2018-02-21T14:09:35 | C16: -1566 | D16: -28.59 | E16: 925 | F16: -28.59 | I16: 0 | K16: 0 | L16: -28.59 | M16: -1566 | AC16: 0 | AD16: 0 | AE16: 0
A17: Бойко Станислав | B17: 2018-02-21T14:11:29 | C17: -8669 | D17: -368.02 | E17: 925 | F17: -368.02 | I17: 0 | K17: 0 | L17: -368.02 | M17: -8669 | AC17: 0 | AD17: 0 | AE17: 0
A18: Наиль | B18: 2018-02-21T14:18:26 | C18: -6395 | D18: 206.76 | E18: 925 | F18: 206.76 | I18: 0 | K18: 0 | L18: 206.76 | M18: -6395 | AC18: 0 | AD18: 0 | AE18: 0
A19: Бисмарк | B19: 2018-02-21T14:20:34 | C19: -17969 | D19: -252.57 | E19: 925 | F19: -252.57 | I19: 0 | K19: 0 | L19: -252.57 | M19: -17969 | AC19: 0 | AD19: 0 | AE19: 0
A20: Дхарма | B20: 2018-02-21T14:21:30 | C20: -13162 | D20: 1.93 | E20: 925 | F20: 1.93 | I20: 0 | K20: 0 | L20: 1.93 | M20: -13162 | AC20: 0 | AD20: 0 | AE20: 0
A21: Мильчев Максим | B21: 2018-02-21T14:24:10 | C21: -4548 | D21: 336.6 | E21: 925 | F21: 336.6 | I21: 0 | K21: 0 | L21: 336.6 | M21: -4548 | AC21: 0 | AD21: 0 | AE21: 0
A22: Артефакториум | B22: 2018-02-21T14:36:59 | F22: =ROUND(D22*E22/925,2) -> 0 | G22: 24.48 | H22: 925 | I22: =ROUND(IF(A22="Бисмарк",G22*$B$2+G22,G22*$B$1+G22),2) -> 25.34 | J22: 40 | K22: =ROUND(G22*J22,2) -> 979.2 | L22: =ROUND(F22-I22*H22/925,2) -> -25.34 | M22: -979.2 | AC22: =ROUND(IF(N22>0,IF(D22>0,L22,-L22),0),2) -> 0 | AD22: =ROUND(IF(O22>0,D22*E22/925,0),2) -> 0 | AE22: =ROUND(G22*H22/925,2) -> 24.48
A23: Мильчев Максим | B23: 2018-02-21T14:37:20 | F23: 0 | G23: 42.07 | H23: 925 | I23: 43.54 | J23: 15 | K23: 631.05 | L23: -43.54 | M23: -631.05 | AC23: 0 | AD23: 0 | AE23: 42.07
A24: Артефакториум | B24: 2018-02-21T14:37:40 | F24: 0 | G24: 10.84 | H24: 925 | I24: 11.22 | K24: 0 | L24: -11.22 | M24: 0 | AC24: 0 | AD24: 0 | AE24: 10.84
A25: Иван вежливый | B25: 2018-02-21T14:38:26 | F25: 0 | G25: 13.47 | H25: 925 | I25: 13.94 | J25: 40 | K25: 538.8 | L25: -13.94 | M25: -538.8 | AC25: 0 | AD25: 0 | AE25: 13.47
A26: Иван вежливый | B26: 2018-02-21T14:38:57 | D26: 16.26 | E26: 925 | F26: 16.26 | I26: 0 | K26: 0 | L26: 16.26 | M26: -569.1 | N26: 35 | AC26: 16.26 | AD26: 0 | AE26: 0
A27: Иван вежливый | B27: 2018-02-21T14:40:05 | C27: 1200 | F27: 0 | G27: 2.32 | H27: 925 | I27: 2.4 | J27: 40 | K27: 92.8 | L27: -2.4 | M27: 1107.2 | AC27: 0 | AD27: 0 | AE27: 2.32
A28: Сандэй | B28: 2018-02-21T14:41:19 | F28: 0 | G28: 2.38 | H28: 925 | I28: 2.46 | J28: 40 | K28: 95.2 | L28: -2.46 | M28: -95.2 | AC28: 0 | AD28: 0 | AE28: 2.38
A29: Бисмарк | B29: 2018-02-21T14:42:43 | D29: 100.07 | E29: 925 | F29: 100.07 | I29: 0 | K29: 0 | L29: 100.07 | M29: 0 | AC29: 0 | AD29: 0 | AE29: 0
A30: Бисмарк | B30: 2018-02-21T14:42:56 | D30: 41.24 | E30: 925 | F30: 41.24 | I30: 0 | K30: 0 | L30: 41.24 | M30: 0 | AC30: 0 | AD30: 0 | AE30: 0
A31: инна | B31: 2018-02-21T16:35:09 | F31: =ROUND(D31*E31/925,2) -> 0 | G31: 5.37 | H31: 925 | I31: =ROUND(IF(A31="Бисмарк",G31*$B$2+G31,G31*$B$1+G31),2) -> 5.56 | J31: 40 | K31: =ROUND(G31*J31,2) -> 214.8 | L31: =ROUND(F31-I31*H31/925,2) -> -5.56 | M31: -214.8 | AC31: =ROUND(IF(N31>0,IF(D31>0,L31,-L31),0),2) -> 0 | AD31: =ROUND(IF(O31>0,D31*E31/925,0),2) -> 0 | AE31: =ROUND(G31*H31/925,2) -> 5.37
A32: инна | B32: 2018-02-21T16:35:21 | C32: 409 | D32: 5.56 | E32: 925 | F32: =ROUND(D32*E32/925,2) -> 5.56 | I32: =ROUND(IF(A32="Бисмарк",G32*$B$2+G32,G32*$B$1+G32),2) -> 0 | K32: =ROUND(G32*J32,2) -> 0 | L32: =ROUND(F32-I32*H32/925,2) -> 5.56 | M32: 214.4 | N32: 35 | AC32: =ROUND(IF(N32>0,IF(D32>0,L32,-L32),0),2) -> 5.56 | AD32: =ROUND(IF(O32>0,D32*E32/925,0),2) -> 0 | AE32: =ROUND(G32*H32/925,2) -> 0
A33: наиль | B33: 2018-02-22T10:56:07 | F33: =ROUND(D33*E33/925,2) -> 0 | G33: 50.88 | H33: 925 | I33: =ROUND(IF(A33="Бисмарк",G33*$B$2+G33,G33*$B$1+G33),2) -> 52.66 | J33: 25 | K33: =ROUND(G33*J33,2) -> 1272 | L33: =ROUND(F33-I33*H33/925,2) -> -52.66 | M33: -1272 | AC33: =ROUND(IF(N33>0,IF(D33>0,L33,-L33),0),2) -> 0 | AD33: =ROUND(IF(O33>0,D33*E33/925,0),2) -> 0 | AE33: =ROUND(G33*H33/925,2) -> 50.88
